bitfinex-derivatives/quotes_SOLF0:USTF0_20250609
["timestamp","ask_amount","ask_price","bid_price","bid_amount"]
[1749484033410,4.93250824,155.18,155.17,6.48567154]
[1749484033814,4.93250824,155.18,155.17,0.04417154]
[1749484034516,9.61722795,155.18,155.17,0.04417154]
[1749484034813,9.615818,155.18,155.13,32.36]
[1749484035114,4.93250824,155.14,155.09,32.36]
[1749484035316,4.68339954,155.13,155.12,6.4437]
[1749484035510,7.72560498,155.15,155.12,6.4437]
[1749484035710,4.68339635,155.14,155.12,6.4437]
[1749484036019,4.68339653,155.13,155.12,6.4437]
[1749484036218,4.68340472,155.13,155.12,6.4437]
[1749484036518,7.76708757,155.15,155.12,6.4437]
[1749484036816,0.04148259,155.15,155.11,0.04868856]
[1749484037320,4.68339182,155.14,155.11,0.04868856]
[1749484037511,0.04148259,155.15,155.11,0.04868856]
[1749484037512,4.68041933,155.13,155.11,0.04868856]
[1749484037709,0.04148259,155.15,155.11,0.04868856]
[1749484038011,4.68044206,155.14,155.13,6.4431]
[1749484038415,0.04148259,155.15,155.13,6.4431]
[1749484038620,4.68043208,155.14,155.13,6.4431]
[1749484039528,4.68043678,155.14,155.13,6.4431]
[1749484039820,0.04148259,155.15,155.13,6.4431]
[1749484040014,4.68044147,155.14,155.13,6.4431]
[1749484040215,4.68044147,155.14,155.12,6.4436]
[1749484040413,4.68045645,155.13,155.12,6.4436]
[1749484040616,4.6805832,155.13,155.12,6.4436]
[1749484040819,4.68058321,155.13,155.12,6.4436]
[1749484041015,7.72560498,155.14,155.13,6.4433]
[1749484041217,0.04148259,155.15,155.11,0.04868856]
[1749484041622,4.6805308,155.14,155.11,0.04868856]
[1749484041818,0.04148259,155.15,155.11,0.04868856]
[1749484042019,0.04148259,155.15,155.14,6.4429]
[1749484042224,4.7220133,155.15,155.14,6.4429]
[1749484042422,4.72199422,155.15,155.14,6.4429]
[1749484042724,0.04148259,155.15,155.14,6.4429]
[1749484042922,4.72187224,155.15,155.14,6.4429]
[1749484043122,0.04148259,155.15,155.14,6.4429]
[1749484046425,4.73286623,155.15,155.14,6.4429]
[1749484046625,4.73286388,155.15,155.14,6.4429]
[1749484047330,0.04148259,155.15,155.14,6.4429]
[1749484063855,4.70011875,155.15,155.14,6.4429]
[1749484064055,0.04148259,155.15,155.14,6.4429]
[1749484064256,4.70011387,155.15,155.14,6.4429]
[1749484064955,0.04148259,155.15,155.14,6.4429]
[1749484065155,4.70011387,155.15,155.14,6.4429]
[1749484065350,0.04148259,155.15,155.14,6.4429]
[1749484065551,4.70011387,155.15,155.14,6.4429]
[1749484065746,0.04148259,155.15,155.14,6.4429]
[1749484065956,4.70009895,155.15,155.14,6.4429]
[1749484066451,4.70022452,155.15,155.14,6.4429]
[1749484066651,14.0,155.2,155.19,6.4408]
[1749484066957,6.00676046,155.25,155.19,7.72560498]
[1749484066958,2.1086,155.25,155.19,7.72560498]
[1749484067252,4.93728503,155.22,155.17,32.36]
[1749484067557,4.93728503,155.21,155.17,37.29728503]
[1749484067755,4.98615632,155.21,155.17,37.33955082]
[1749484069053,4.98615632,155.21,155.19,6.4405]
[1749484069268,0.04887129,155.21,155.19,6.4405]
[1749484069560,0.04887129,155.21,155.17,32.40226579]
[1749484070559,0.04887129,155.21,155.2,6.4404]
[1749484080057,4.63257288,155.21,155.2,6.4404]
[1749484080960,4.63257365,155.21,155.2,6.4404]
[1749484081159,0.04887129,155.21,155.2,6.4404]
[1749484081367,4.63704029,155.21,155.2,6.4404]
[1749484081567,0.04887129,155.21,155.2,6.4404]
[1749484082073,14.0,155.25,155.2,7.71832225]
[1749484082263,9.94535428,155.24,155.22,7.71832225]
[1749484082559,6.4376,155.27,155.22,7.71832225]
[1749484082766,9.94591548,155.26,155.21,32.34]
[1749484083062,9.98987835,155.25,155.22,0.04728175]
[1749484083264,4.5889916,155.24,155.23,6.4388]
[1749484083464,9.94563228,155.24,155.23,6.4388]
[1749484084265,0.04394565,155.25,155.24,6.4388]
[1749484084461,9.9858383,155.25,155.24,6.4388]
[1749484084663,5.39985449,155.25,155.24,6.4388]
[1749484085166,9.98583752,155.25,155.24,6.4388]
[1749484085365,9.98583751,155.25,155.24,6.4388]
[1749484085963,5.39985449,155.25,155.24,6.4388]
[1749484086171,0.04394565,155.25,155.24,6.4388]
[1749484087868,0.04394565,155.25,155.24,14.15712225]
[1749484088575,4.565e-05,155.25,155.24,14.15712225]
[1749484090964,4.4395,155.32,155.24,7.71832225]
[1749484091160,9.80455553,155.32,155.27,7.71832225]
[1749484091574,10.875,155.32,155.27,7.71832225]
[1749484092070,0.0406906,155.31,155.28,0.04949153]
[1749484092465,4.65486191,155.31,155.28,0.04949153]
[1749484092874,0.0406906,155.31,155.28,0.04949153]
[1749484093068,6.4767906,155.31,155.28,0.04949153]
[1749484093972,6.4767906,155.31,155.28,6.48659153]
[1749484094372,11.06670023,155.3,155.28,0.04949153]
[1749484094572,0.0406906,155.31,155.28,6.48639153]
[1749484094774,4.63007418,155.3,155.28,6.48639153]
[1749484094975,0.0406906,155.31,155.28,6.48639153]
[1749484095170,5.40350084,155.31,155.28,6.48639153]
[1749484095874,4.63008226,155.3,155.28,6.48639153]
[1749484096169,5.40350084,155.31,155.28,6.48639153]
[1749484096370,4.63020244,155.3,155.28,6.48639153]
[1749484096874,6.4363,155.3,155.28,6.48639153]
[1749484097277,7.71832225,155.3,155.28,0.04949153]
[1749484097578,11.07137578,155.29,155.28,0.04949153]
[1749484097772,11.07654892,155.29,155.28,0.04949153]
[1749484098075,8.5628,155.29,155.28,0.04949153]
[1749484098567,13.20265267,155.29,155.28,0.04949153]
[1749484098770,6.4374,155.28,155.25,6.4381]
[1749484098974,14.15572225,155.28,155.25,6.4381]
[1749484099677,7.71832225,155.28,155.24,6.4387]
[1749484099975,4.63987959,155.27,155.25,0.04383275]
[1749484100174,7.76550827,155.28,155.25,0.04383275]
[1749484100476,6.4379,155.27,155.25,0.04383275]
[1749484100674,7.76550827,155.28,155.25,0.04383275]
[1749484100978,7.76550827,155.28,155.23,6.439]
[1749484100979,7.71832225,155.26,155.23,6.439]
[1749484101477,14.15652225,155.26,155.23,6.439]
[1749484101878,14.15652225,155.26,155.23,6.48397872]
[1749484104273,7.71832225,155.26,155.24,6.4387]
[1749484104578,9.95582225,155.27,155.23,0.04497872]
[1749484104978,16.39352225,155.27,155.23,0.04497872]
[1749484105280,9.95582225,155.27,155.23,0.04497872]
[1749484105678,16.39332225,155.27,155.24,6.4387]
[1749484105876,9.95582225,155.27,155.24,6.4387]
[1749484106280,4.61110095,155.26,155.23,6.48397872]
[1749484106474,9.95582225,155.27,155.23,6.48397872]
[1749484106678,9.96750855,155.26,155.23,6.48397872]
[1749484106878,12.33107601,155.25,155.23,6.48397872]
[1749484107079,7.71832225,155.25,155.23,6.48397872]
[1749484107279,7.71832225,155.25,155.19,32.3]
[1749484107580,2.2375,155.27,155.19,32.3]
[1749484107581,7.71832225,155.23,155.19,32.3]
[1749484107976,14.15782225,155.23,155.21,6.4398]
[1749484108877,7.71832225,155.23,155.21,6.4398]
[1749484109082,4.60822775,155.22,155.21,6.4398]
[1749484109781,6.48177434,155.24,155.22,6.4394]
[1749484110379,4.60791653,155.23,155.22,6.4394]
[1749484110682,6.48177434,155.24,155.22,6.4394]
[1749484113086,11.03385824,155.23,155.21,6.4398]
[1749484113284,6.4392,155.23,155.21,6.4398]
[1749484114684,5.35405465,155.23,155.21,6.4398]
[1749484114885,0.04287434,155.24,155.21,6.4398]
[1749484115088,6.48187434,155.24,155.21,6.4398]
[1749484115287,4.5906882,155.23,155.21,6.4398]
[1749484115480,5.35442429,155.23,155.21,6.4398]
[1749484115988,5.35442429,155.23,155.2,0.04919179]
[1749484115989,5.35442429,155.23,155.22,6.4396]
[1749484116180,6.48187434,155.24,155.22,6.4396]
[1749484116381,0.04287434,155.24,155.2,0.04919179]
[1749484116678,0.04287434,155.24,155.23,6.4392]
[1749484120584,0.04287434,155.24,155.22,6.4394]
[1749484121484,4.63155071,155.24,155.22,6.4394]
[1749484121788,0.04287434,155.24,155.22,6.4394]
[1749484122788,0.04287434,155.24,155.23,6.4392]
[1749484122989,5.41084432,155.24,155.23,6.4392]
[1749484123486,10.02266078,155.24,155.23,6.4392]
[1749484123692,10.0226669,155.24,155.23,6.4392]
[1749484123988,10.02267915,155.24,155.23,6.4392]
[1749484124189,5.41084432,155.24,155.23,6.4392]
[1749484124390,16.46147303,155.24,155.22,6.4395]
[1749484124586,7.76119659,155.24,155.2,0.04919179]
[1749484124790,5.3695785,155.23,155.2,0.04919179]
[1749484125091,7.76119659,155.24,155.21,6.4398]
[1749484125286,9.98745918,155.23,155.21,6.4398]
[1749484125486,7.76119659,155.24,155.21,6.4398]
[1749484125790,9.98733157,155.23,155.21,6.4398]
[1749484126094,6.4392,155.23,155.21,6.4398]
[1749484126282,7.76119659,155.24,155.22,6.4396]
[1749484126482,5.36650631,155.23,155.22,6.4396]
[1749484126694,9.98408732,155.23,155.22,6.4396]
[1749484127293,9.970701,155.23,155.22,6.4396]
[1749484127488,9.97068849,155.23,155.21,6.4398]
[1749484127790,6.4392,155.23,155.21,6.4398]
[1749484128989,6.44,155.21,155.2,0.04919179]
[1749484129190,5.36663054,155.21,155.15,32.28]
[1749484129386,7.71832225,155.19,155.15,32.28]
[1749484129587,14.15912225,155.19,155.16,6.4419]
[1749484129794,7.71832225,155.19,155.15,32.28]
[1749484130190,6.4415,155.18,155.15,38.77031989]
[1749484130386,7.76681625,155.19,155.15,38.77031989]
[1749484130593,4.5973821,155.18,155.15,38.77031989]
[1749484130790,11.0387821,155.18,155.15,38.77031989]
[1749484130993,6.4414,155.18,155.15,38.77031989]
[1749484131897,6.4414,155.18,155.16,6.442]
[1749484132098,6.4414,155.18,155.15,32.32821989]
[1749484132293,7.76681625,155.19,155.15,32.32821989]
[1749484132487,6.4417,155.17,155.15,38.77051989]
[1749484132686,7.76681625,155.19,155.15,38.77051989]
[1749484132891,7.76681625,155.19,155.15,32.32821989]
[1749484133791,6.4414,155.18,155.16,6.4419]
[1749484134895,4.57984312,155.17,155.16,6.4419]
[1749484135702,7.76681625,155.19,155.17,6.4412]
[1749484135895,0.048494,155.19,155.15,32.32821989]
[1749484136101,0.048494,155.19,155.18,6.4412]
[1749484136401,4.62828989,155.19,155.18,6.4412]
[1749484136598,0.048494,155.19,155.18,6.4412]
[1749484136796,4.62830186,155.19,155.18,6.4412]
[1749484136998,4.62830269,155.19,155.18,6.4412]
[1749484137199,4.62829599,155.19,155.18,6.4412]
[1749484137398,4.62382338,155.19,155.18,6.4412]
[1749484137599,0.048494,155.19,155.17,6.4415]
[1749484138502,6.489294,155.19,155.17,6.4415]
[1749484139093,0.048494,155.19,155.17,6.4415]
[1749484139498,7.76681625,155.19,155.17,6.4415]
[1749484140402,7.76681625,155.19,155.18,6.4412]
[1749484140607,12.33886561,155.19,155.18,6.4412]
[1749484140802,12.33886538,155.19,155.18,6.4412]
[1749484141105,12.33886016,155.19,155.18,6.4412]
[1749484141899,12.33886368,155.19,155.18,6.4412]
[1749484142406,12.33747224,155.19,155.18,6.4412]
[1749484142611,7.76681625,155.19,155.18,6.4412]
[1749484143306,0.048494,155.19,155.18,6.4412]
[1749484145115,14.0,155.23,155.22,6.4396]
[1749484145312,14.0,155.23,155.17,7.71832225]
[1749484145313,40.01832225,155.25,155.17,7.71832225]
[1749484145519,9.91260953,155.24,155.17,7.71832225]
[1749484145706,9.91259634,155.23,155.17,7.71832225]
[1749484145911,7.71832225,155.25,155.17,7.71832225]
[1749484146111,0.04940554,155.23,155.19,0.04738044]
[1749484146310,0.04940554,155.23,155.19,40.06570269]
[1749484147418,0.04940554,155.23,155.22,6.4396]
[1749484147821,4.6280958,155.23,155.22,6.4396]
[1749484148012,0.04940554,155.23,155.22,6.4396]
[1749484154124,0.04940554,155.23,155.21,6.4398]
[1749484154328,4.60803105,155.22,155.19,0.04738044]
[1749484154523,11.85263203,155.23,155.2,6.4401]
[1749484154823,6.48880554,155.23,155.2,6.4401]
[1749484155028,4.60619211,155.22,155.2,6.4401]
[1749484155216,6.48880554,155.23,155.2,6.4401]
[1749484155421,4.60644348,155.22,155.2,6.4401]
[1749484155622,6.48880554,155.23,155.2,6.4401]
[1749484155827,6.48880554,155.23,155.21,6.44]
[1749484156130,4.60643505,155.22,155.21,6.44]
[1749484156326,6.48880554,155.23,155.21,6.44]
[1749484156523,11.04604748,155.22,155.2,6.4402]
[1749484156731,4.60644844,155.21,155.2,6.4402]
[1749484157229,5.36783312,155.22,155.21,6.44]
[1749484157431,0.04940554,155.23,155.2,7.71832225]
[1749484157824,0.04940554,155.23,155.22,7.71832225]
[1749484158821,0.04940554,155.23,155.22,14.15792225]
[1749484159932,0.04940554,155.23,155.22,6.4396]
[1749484162231,4.64322011,155.23,155.22,6.4396]
[1749484162431,0.04940554,155.23,155.22,6.4396]
[1749484164527,4.65011705,155.23,155.22,6.4396]
[1749484164834,0.04940554,155.23,155.22,6.4396]
[1749484165335,4.65036986,155.23,155.22,6.4396]
[1749484165535,0.04940554,155.23,155.22,6.4396]
[1749484165737,4.65037609,155.23,155.22,6.4396]
[1749484166334,4.65038233,155.23,155.22,6.4396]
[1749484166530,4.65037609,155.23,155.22,6.4396]
[1749484166732,0.04940554,155.23,155.22,6.4396]
[1749484173641,5.54e-06,155.23,155.22,6.4396]
[1749484174543,4.73972843,155.3,155.21,9.88962225]
[1749484174745,4.61129487,155.29,155.24,7.71832225]
[1749484174944,20.4361,155.31,155.24,39.97832225]
[1749484175143,20.4361,155.31,155.28,6.4368]
[1749484175540,4.61152683,155.3,155.28,6.48003843]
[1749484175848,14.04625183,155.31,155.29,6.4367]
[1749484176040,4.61151458,155.3,155.29,6.4367]
[1749484176450,4.61151446,155.3,155.29,6.4367]
[1749484176949,14.04625183,155.31,155.29,6.4367]
[1749484177150,4.61177176,155.3,155.29,6.4367]
[1749484177352,4.62071258,155.3,155.29,6.4367]
[1749484177550,14.04625183,155.31,155.29,6.4367]
[1749484177752,4.62071258,155.3,155.29,6.4367]
[1749484177941,14.04625183,155.31,155.29,6.4367]
[1749484178448,4.62069384,155.3,155.29,6.4367]
[1749484178646,14.04625183,155.31,155.29,6.4367]
[1749484178850,4.63092733,155.3,155.29,6.4367]
[1749484179050,14.04625183,155.31,155.29,6.4367]
[1749484179251,14.04625183,155.31,155.3,6.4363]
[1749484179451,18.67717916,155.31,155.3,6.4363]
[1749484180348,18.67717316,155.31,155.3,6.4363]
[1749484180544,18.67717313,155.31,155.3,6.4363]
[1749484180750,14.04625183,155.31,155.3,6.4363]
[1749484181453,18.68608766,155.31,155.3,6.4363]
[1749484181953,14.04625183,155.31,155.3,6.4363]
[1749484182351,18.68646804,155.31,155.3,6.4363]
[1749484182554,14.04625183,155.31,155.3,6.4363]
[1749484182751,18.68646658,155.31,155.3,6.4363]
[1749484182952,14.04625183,155.31,155.3,6.4363]
[1749484183356,18.68646731,155.31,155.3,6.4363]
[1749484183660,18.68975167,155.31,155.29,6.4366]
[1749484183958,14.04625183,155.31,155.29,6.4366]
[1749484184156,14.04625183,155.31,155.3,6.4363]
[1749484184350,4.68976262,155.31,155.3,6.4363]
[1749484184551,0.04625183,155.31,155.3,6.4363]
[1749484185057,4.68975754,155.31,155.3,6.4363]
[1749484185260,0.04625183,155.31,155.3,6.4363]
[1749484185664,4.68975464,155.31,155.3,6.4363]
[1749484185960,4.68975026,155.31,155.3,6.4363]
[1749484186159,0.04625183,155.31,155.3,6.4363]
[1749484188056,4.69191472,155.31,155.3,6.4363]
[1749484188256,4.69191472,155.31,155.29,6.4365]
[1749484188462,0.04625183,155.31,155.29,6.4365]
[1749484188662,0.04625183,155.31,155.28,0.04323843]
[1749484188859,0.04625183,155.31,155.29,6.4364]
[1749484189163,0.04625183,155.31,155.28,0.04323843]
[1749484189664,6.48225183,155.31,155.29,6.4366]
[1749484190356,6.4363,155.3,155.28,6.48013843]
[1749484192564,6.48225183,155.31,155.28,6.48013843]
[1749484192765,6.48225183,155.31,155.29,6.4365]
[1749484194165,0.04625183,155.31,155.3,6.4363]
[1749484202266,5.39685187,155.34,155.33,6.435]
[1749484202465,13.11517412,155.36,155.28,39.93832225]
[1749484202665,10.02443307,155.35,155.28,39.93832225]
[1749484202867,5.39685187,155.34,155.28,39.93832225]
[1749484203166,5.39685187,155.35,155.34,6.4346]
[1749484203666,0.04454441,155.36,155.35,6.4342]
[1749484203861,10.07989532,155.36,155.35,6.4342]
[1749484204065,10.09124886,155.36,155.35,6.4342]
[1749484204369,10.09124895,155.36,155.35,6.4342]
[1749484204669,5.43898163,155.36,155.35,6.4342]
[1749484205167,10.09124851,155.36,155.35,6.4342]
[1749484205468,10.09124294,155.36,155.35,6.4342]
[1749484205667,10.0912471,155.36,155.35,6.4342]
[1749484206072,5.43898163,155.36,155.35,6.4342]
[1749484206275,10.09123375,155.36,155.35,6.4342]
[1749484206565,4.69679542,155.36,155.35,6.4342]
[1749484206766,10.09123265,155.36,155.35,6.4342]
[1749484206965,0.04454441,155.36,155.35,6.4342]
[1749484213079,5.40210358,155.39,155.38,6.4329]
[1749484213277,5.40210358,155.4,155.36,7.71832225]
[1749484213580,14.0,155.41,155.37,6.4332]
[1749484213581,13.11919393,155.39,155.37,6.4332]
[1749484213773,5.40087168,155.38,155.37,6.4332]
[1749484213975,10.0694157,155.38,155.37,6.4332]
[1749484214278,10.06941144,155.38,155.37,6.4332]
[1749484214672,5.40087168,155.38,155.37,6.4332]
[1749484214877,10.0692888,155.38,155.37,6.4332]
[1749484215072,5.40087168,155.38,155.37,6.4332]
[1749484216078,10.06928888,155.38,155.37,6.4332]
[1749484216273,5.40087168,155.38,155.37,6.4332]
[1749484216469,10.06928888,155.38,155.37,6.4332]
[1749484216674,10.06928878,155.38,155.37,6.4332]
[1749484217274,5.40087168,155.38,155.37,6.4332]
[1749484218278,10.08129793,155.38,155.37,6.4332]
[1749484218479,5.40087168,155.38,155.37,6.4332]
[1749484218882,10.08129141,155.38,155.37,6.4332]
[1749484219180,5.40087168,155.38,155.37,6.4332]
[1749484219381,5.41342194,155.38,155.37,6.4332]
[1749484220382,10.09485194,155.38,155.37,6.4332]
[1749484220577,10.0982906,155.38,155.37,6.4332]
[1749484220979,10.09828466,155.38,155.37,6.4332]
[1749484221280,5.41342194,155.38,155.37,6.4332]
[1749484221784,10.09827385,155.38,155.37,6.4332]
[1749484221971,5.41342194,155.38,155.37,6.4332]
[1749484222372,10.09827418,155.38,155.37,6.4332]
[1749484222576,10.09827419,155.38,155.37,6.4332]
[1749484223278,5.41342194,155.38,155.37,6.4332]
[1749484223673,10.09725991,155.38,155.37,6.4332]
[1749484223987,5.41342194,155.38,155.37,6.4332]
[1749484224178,10.09725991,155.38,155.37,6.4332]
[1749484224982,10.09727129,155.38,155.37,6.4332]
[1749484225882,4.68384935,155.38,155.37,6.4332]
[1749484226086,0.04243695,155.39,155.38,6.4329]
[1749484226278,5.45419261,155.39,155.38,6.4329]
[1749484226782,10.13601526,155.39,155.38,6.4329]
[1749484226981,10.14046872,155.39,155.38,6.4329]
[1749484227183,10.14046615,155.39,155.38,6.4329]
[1749484227482,5.45419261,155.39,155.38,6.4329]
[1749484227680,4.72870537,155.39,155.38,6.4329]
[1749484227878,10.14046102,155.39,155.38,6.4329]
[1749484228078,4.72870536,155.39,155.38,6.4329]
[1749484228274,5.45419261,155.39,155.38,6.4329]
[1749484228481,4.72870279,155.39,155.38,6.4329]
[1749484228676,5.45419261,155.39,155.38,6.4329]
[1749484228882,0.04243695,155.39,155.38,6.4329]
[1749484229088,4.73209222,155.39,155.38,6.4329]
[1749484229383,0.04243695,155.39,155.38,6.4329]
[1749484229583,4.73209552,155.39,155.38,6.4329]
[1749484229785,0.04243695,155.39,155.38,6.4329]
[1749484229987,10.14829981,155.39,155.38,6.4329]
[1749484230181,0.04243695,155.39,155.38,6.4329]
[1749484230387,10.1482998,155.39,155.38,6.4329]
[1749484230791,0.04243695,155.39,155.38,6.4329]
[1749484231088,4.73208962,155.39,155.38,6.4329]
[1749484231290,4.73208961,155.39,155.38,6.4329]
[1749484231486,10.14943793,155.39,155.38,6.4329]
[1749484231681,10.14944307,155.39,155.38,6.4329]
[1749484231887,4.75512612,155.39,155.38,6.4329]
[1749484232180,5.45977498,155.39,155.38,6.4329]
[1749484232386,0.04243695,155.39,155.38,6.4329]
[1749484232588,10.17693918,155.39,155.38,6.4329]
[1749484232784,4.75960115,155.39,155.38,6.4329]
[1749484232984,5.45977498,155.39,155.38,6.4329]
[1749484233187,10.17693918,155.39,155.38,6.4329]
[1749484233584,10.17693705,155.39,155.38,6.4329]
[1749484233782,10.1771639,155.39,155.38,6.4329]
[1749484233983,4.7595952,155.39,155.38,6.4329]
[1749484234182,10.17709692,155.39,155.38,6.4329]
[1749484234389,5.45993867,155.39,155.38,6.4329]
[1749484234587,10.17710074,155.39,155.38,6.4329]
[1749484234783,10.17925745,155.39,155.38,6.4329]
[1749484234984,5.45993867,155.39,155.38,6.4329]
[1749484235686,10.17925682,155.39,155.38,6.4329]
[1749484236293,10.17925745,155.39,155.38,6.4329]
[1749484236481,5.45993867,155.39,155.38,6.4329]
[1749484236889,5.45993867,155.39,155.38,11.36050253]
[1749484237485,10.17924645,155.39,155.38,11.36050253]
[1749484237682,5.45993867,155.39,155.38,11.36050253]
[1749484238692,10.18115327,155.39,155.38,11.36050253]
[1749484238893,10.18115274,155.39,155.38,11.36050253]
[1749484239191,10.18115274,155.39,155.38,6.4329]
[1749484239392,19.62358767,155.39,155.38,6.4329]
[1749484239792,24.34480892,155.39,155.38,6.4329]
[1749484240591,24.34480638,155.39,155.38,6.4329]
[1749484240787,24.34481273,155.39,155.38,6.4329]
[1749484241093,24.34480194,155.39,155.38,11.36050253]
[1749484241586,24.34480175,155.39,155.38,11.36050253]
[1749484241783,19.62358767,155.39,155.38,11.36050253]
[1749484242192,24.344803,155.39,155.38,11.36050253]
[1749484242588,24.34032733,155.39,155.38,11.36050253]
[1749484242891,19.62358767,155.39,155.38,11.36050253]
[1749484243092,24.34032733,155.39,155.38,11.36050253]
[1749484243388,24.34032807,155.39,155.38,6.4329]
[1749484243690,24.5511902,155.39,155.38,6.4329]
[1749484243893,24.3399742,155.39,155.38,6.4329]
[1749484244094,24.33997411,155.39,155.38,6.4329]
[1749484244388,19.62358767,155.39,155.38,6.4329]
[1749484244590,24.33996919,155.39,155.38,6.4329]
[1749484244795,24.33996865,155.39,155.38,6.4329]
[1749484245197,19.62358767,155.39,155.38,6.4329]
[1749484245493,24.33996286,155.39,155.38,6.4329]
[1749484245683,24.33984386,155.39,155.38,6.4329]
[1749484245888,24.5511902,155.39,155.38,6.4329]
[1749484246084,35.26547921,155.39,155.36,0.04413299]
[1749484246298,5.41750172,155.38,155.36,0.04413299]
[1749484246489,5.41750172,155.37,155.36,0.04413299]
[1749484246696,10.13400077,155.37,155.36,0.04413299]
[1749484246896,10.13398261,155.37,155.36,0.04413299]
[1749484247094,10.13399293,155.37,155.36,4.97173552]
[1749484247296,10.13398844,155.37,155.36,4.97173552]
[1749484247491,5.41750172,155.37,155.36,4.97173552]
[1749484247691,10.13398189,155.37,155.36,6.47793299]
[1749484247995,10.13397635,155.37,155.36,6.47793299]
[1749484248196,5.41750172,155.37,155.36,11.40553552]
[1749484248596,14.20608595,155.39,155.38,6.4329]
[1749484248791,19.63464621,155.39,155.38,11.36050253]
[1749484248997,24.35110119,155.39,155.38,11.36050253]
[1749484249196,24.35109291,155.39,155.38,11.36050253]
[1749484249591,24.34569727,155.39,155.38,11.36050253]
[1749484249794,24.34569727,155.39,155.38,6.4329]
[1749484250001,19.6345759,155.39,155.38,6.4329]
[1749484250902,24.34570761,155.39,155.38,6.4329]
[1749484251104,24.34570772,155.39,155.38,6.4329]
[1749484251298,19.6345759,155.39,155.38,6.4329]
[1749484251501,24.34570244,155.39,155.38,6.4329]
[1749484251705,24.34583446,155.39,155.38,6.4329]
[1749484252005,19.6345759,155.39,155.38,6.4329]
[1749484252309,24.34582413,155.39,155.38,6.4329]
[1749484252607,19.6345759,155.39,155.38,6.4329]
[1749484252801,24.35029456,155.39,155.38,6.4329]
[1749484253002,24.35029446,155.39,155.38,6.4329]
[1749484253408,19.6345759,155.39,155.38,6.4329]
[1749484253612,24.35100118,155.39,155.38,6.4329]
[1749484253804,24.35099588,155.39,155.38,11.36050253]
[1749484254209,19.6345759,155.39,155.38,11.36050253]
[1749484254403,24.35100034,155.39,155.38,11.36050253]
[1749484254805,24.35099269,155.39,155.38,11.36050253]
[1749484255005,24.35099279,155.39,155.38,11.36050253]
[1749484255505,24.35112855,155.39,155.38,11.36050253]
[1749484255711,24.35112345,155.39,155.38,11.36050253]
[1749484255908,24.35113312,155.39,155.38,11.36050253]
[1749484256113,24.35112017,155.39,155.38,11.36050253]
[1749484256312,19.6345759,155.39,155.38,11.36050253]
[1749484256511,24.35112017,155.39,155.38,11.36050253]
[1749484257215,19.6345759,155.39,155.38,11.36050253]
[1749484257408,24.35112282,155.39,155.38,11.36050253]
[1749484257608,24.35061545,155.39,155.38,11.36050253]
[1749484257813,24.35061615,155.39,155.38,11.36050253]
[1749484258414,19.6345759,155.39,155.38,11.36050253]
[1749484258916,24.35061679,155.39,155.38,11.36050253]
[1749484259411,19.6345759,155.39,155.38,11.36050253]
[1749484260417,24.35074155,155.39,155.38,11.36050253]
[1749484260816,19.6345759,155.39,155.38,11.36050253]
[1749484261112,24.35074229,155.39,155.38,11.36050253]
[1749484261315,19.6345759,155.39,155.38,11.36050253]
[1749484261516,24.35074237,155.39,155.38,11.36050253]
[1749484261815,24.35086902,155.39,155.38,11.36050253]
[1749484262205,24.35086922,155.39,155.38,11.36050253]
[1749484262413,24.35086902,155.39,155.38,11.36050253]
[1749484262817,24.35086875,155.39,155.38,11.36050253]
[1749484263117,24.35086812,155.39,155.38,11.36050253]
[1749484263318,24.35086822,155.39,155.38,11.36050253]
[1749484263512,24.35686903,155.39,155.38,11.36050253]
[1749484263719,24.35687415,155.39,155.38,11.36050253]
[1749484264018,24.35686903,155.39,155.38,11.36050253]
[1749484264214,24.35686456,155.39,155.38,11.36050253]
[1749484264714,24.35686967,155.39,155.38,11.36050253]
[1749484264910,24.35674221,155.39,155.38,11.36050253]
[1749484265111,24.35673708,155.39,155.38,11.36050253]
[1749484265521,24.35824128,155.39,155.38,11.36050253]
[1749484265720,24.35822632,155.39,155.38,11.36050253]
[1749484266018,24.36745389,155.39,155.38,11.36050253]
[1749484266219,24.36745396,155.39,155.38,11.36050253]
[1749484266414,19.64378808,155.39,155.38,11.36050253]
[1749484266921,24.36297651,155.39,155.38,11.36050253]
[1749484267118,24.36310329,155.39,155.38,11.36050253]
[1749484267416,19.64378808,155.39,155.38,11.36050253]
[1749484267621,24.36310098,155.39,155.38,11.36050253]
[1749484267818,19.64378808,155.39,155.38,11.36050253]
[1749484268119,24.36310088,155.39,155.38,11.36050253]
[1749484268318,24.36310109,155.39,155.38,11.36050253]
[1749484268618,24.36817627,155.39,155.38,11.36050253]